Cogmind - Beta 16 --- EXPLORER MODE // 2026.01.28 @ 09:29:08 Player: K.K.Y. Result: Destroyed by ZX-3XE(R) with Subdweller Laser Performance ------------- Evolutions (0) 0 Regions Visited (3) 600 Robots Destroyed (33) 165 Value Destroyed (704) 704 Prototype IDs (1) 20 Alien Tech Used (0) 0 Bonus (-116) -116 TOTAL SCORE: 1373 Bonus ------- Follower Combat Kills 55 Friendly Fire -171 Cogmind --------- Core Integrity 0/250 Matter 280/300 Energy 26/100 System Corruption 0% Temperature Cool (6) Movement Core (450) Ox8 Location -10/Subcaves Parts ------- > --- POWER (1) -------- (None) > --- PROPULSION (2) --- (None) > --- UTILITY (3) ------ Large Storage Unit Structural Scanner > --- WEAPON (2) ------- Medium Laser Beam Rifle > --- INVENTORY (15) --- Light Treads Improved Heat Sink Improved Terrain Scanner Light Armor Plating Medium Laser Medium Laser Heavy Assault Rifle Mining Laser Makeshift Hammer Peak State ------------ > --- POWER ------------ Cooled Ion Engine > --- PROPULSION ------- Light Treads Light Treads > --- UTILITY ---------- Large Storage Unit Structural Scanner Sensor Array > --- WEAPON ----------- Medium Laser Beam Cannon > --- INVENTORY -------- Makeshift Power Source Light Angular Momentum Engine Light Treads Improved Heat Sink Improved Terrain Scanner Light Armor Plating Medium Laser Medium Laser Medium Laser Medium Laser Medium Laser Beam Rifle Heavy Assault Rifle Mining Laser Makeshift Hammer [Rating: 13] Favorites ----------- Power Cooled Ion Engine Engine Cooled Ion Engine Propulsion Light Treads Treads Light Treads Utility Sensor Array Device Sensor Array Storage Large Storage Unit Protection Core Shielding Weapon Medium Laser Energy Gun Medium Laser Energy Cannon Beam Cannon Special Weapon Mining Laser Build | -11 -10 -10 -10 ------- Run | Yrd Mat Min Sub Slots Evolved 1 | . 1 . . Power . | . . . . Propulsion . | . . . . Utility 1 | . 1 . . Weapon . | . . . . Parts Attached 23 | 6 7 2 8 Power 4 | 1 1 . 2 Engine 4 | 1 1 . 2 Core . | . . . . Reactor . | . . . . Propulsion 6 | 2 . 2 2 Treads 6 | 2 . 2 2 Leg . | . . . . Wheel . | . . . . Hover . | . . . . Flight . | . . . . Utility 6 | 2 4 . . Device 2 | . 2 . . Storage 2 | . 2 . . Processor . | . . . . Hackware . | . . . . Protection 2 | 2 . . . Artifact . | . . . . Weapon 7 | 1 2 . 4 Energy Gun 5 | 1 . . 4 Energy Cannon 1 | . 1 . . Ballistic Gun . | . . . . Ballistic Cannon . | . . . . Launcher . | . . . . Special Weapon 1 | . 1 . . Impact Weapon . | . . . . Slashing Weapon . | . . . . Piercing Weapon . | . . . . Special Melee Weapon . | . . . . Unidentified Prototypes 1 | . 1 . . Parts Lost 10 | . . . 10 Power 3 | . . . 3 Propulsion 2 | . . . 2 Utility 1 | . . . 1 Weapon 4 | . . . 4 Highest Loss Streak 10 | . . . 10 To Critical Strikes . | . . . . Average Backups 10 | 1 5 13 14 Power 1 | . . 1 1 Propulsion 1 | . . 1 1 Utility 2 | 1 1 2 3 Weapon 6 | . 2 7 8 Tool/Special . | . . . . Unused Backups 8 | . . . 8 Power 1 | . . . 1 Propulsion . | . . . . Utility 3 | . . . 3 Weapon 4 | . . . 4 Tool/Special . | . . . . Average Slot Usage (%) 97 | . 93 100 98 Engine 11 | . 12 12 11 Treads 24 | . 23 25 24 Device 21 | . 14 25 24 Storage 9 | . 4 12 12 Protection 5 | . 16 . . Energy Gun 12 | . 12 12 12 Energy Cannon 11 | . 10 12 11 Peak Build Rating 13 | 6 11 12 13 Average Rating 10 | 4 8 11 12 On Entrance 7 | . 6 11 12 Avg Prop Armor Cover (%) . | . . . . Naked Turns . | . . . . Heaviest Build 35 | 9 35 35 35 Greatest Support 40 | 40 40 40 40 Greatest Overweight (x) 2 | . 2 . . Average Overweight (x) . | . . . . Largest Inventory Capacity 15 | 5 15 15 15 Average Capacity 12 | 5 7 15 15 Most Carried 15 | 5 10 15 15 Average Carried 10 | 1 5 13 14 Final Capacity 15 | 5 15 15 15 Final Carried 14 | 3 9 14 9 Class Distribution -------------------- 100% | Hacker-Mutant Dominant Class ---------------- Hacker-Mutant | -10/Materials Hacker-Mutant | -10/Mines Hacker-Mutant | -10/Subcaves Resources | -11 -10 -10 -10 ----------- Run | Yrd Mat Min Sub Matter Collected 450 | 260 120 30 40 Remotely . | . . . . Salvage Created 1145 | 115 467 201 362 Parts 64 | 9 33 11 11 Haulers Intercepted 2 | . 2 . . Recyclers Shooed . | . . . . Parts Field Recycled . | . . . . Retrieved Matter . | . . . . Parts Self-Destructed . | . . . . Prevented . | . . . . Parts Restored . | . . . . Kills | -11 -10 -10 -10 ------- Run | Yrd Mat Min Sub Combat Hostiles Destroyed 19 | . 7 4 8 Guns 7 | . 1 1 5 Cannons 12 | . 6 3 3 Classes Destroyed 10 | 2 6 1 1 Worker 1 | . 1 . . Builder 4 | . 4 . . Tunneler 2 | 2 . . . Hauler 2 | . 2 . . Recycler 1 | 1 . . . Watcher 3 | . 3 . . Swarmer 6 | . 4 2 . Grunt 5 | . 3 . 2 Sentry 3 | . . 2 1 Subdweller 5 | . . . 5 Thug 1 | . . 1 . Best Kill Streak 3 | 3 3 2 2 Combat Bots Only 2 | . 2 2 2 Max Kills in Single Turn 1 | 1 1 1 1 Gunslinging . | . . . . Exploded . | . . . . Melee . | . . . . Uniques/NPCs Destroyed . | . . . . Combat | -11 -10 -10 -10 -------- Run | Yrd Mat Min Sub Hostile Shots Fired 154 | . 26 37 91 Missed 43 | . 12 10 21 Hits 111 | . 14 27 70 Projectile 111 | . 14 27 70 AOE 4 | . . . 4 Critical Strikes 4 | . . . 4 Damage Taken 1326 | . 73 180 1073 Core 262 | . 3 9 250 Absorbed by Shields . | . . . . Ignored by Resistances 782 | . 52 114 616 Core Remaining (%) 100 | 100 . . . Volleys Fired 96 | 7 38 16 35 Largest 2 | 1 2 2 2 Hottest 150 | 50 150 110 150 Shots Fired 173 | 7 64 32 70 Gun 103 | 7 29 16 51 Cannon 66 | . 33 16 17 Launcher . | . . . . Special 4 | . 2 . 2 Kinetic . | . . . . Thermal 173 | 7 64 32 70 Explosive . | . . . . Electromagnetic . | . . . . Robot Hit Streak 36 | 7 21 23 36 Robot Miss Streak 2 | . 2 2 1 Penetration Max . | . . . . Secondary Targets 2 | . . . 2 Max Gunslinging Chain 1 | . . . 1 Shots Hit Robots 139 | 7 46 26 60 Core Hits 50 | 4 19 10 17 Critical Kills . | . . . . Critical Parts Destroyed . | . . . . Critical Strikes 11 | . 5 1 5 Burn 11 | . 5 1 5 Melee Attacks . | . . . . Impact . | . . . . Slashing . | . . . . Piercing . | . . . . Sneak Attacks . | . . . . Combat Hostiles . | . . . . Follow-up Attacks . | . . . . Damage Inflicted 2013 | 87 700 398 828 Guns 1167 | 87 293 187 600 Cannons 846 | . 407 211 228 Explosions . | . . . . Melee . | . . . . Ramming . | . . . . Kinetic . | . . . . Thermal 2013 | 87 700 398 828 Explosive . | . . . . Electromagnetic . | . . . . Impact . | . . . . Slashing . | . . . . Piercing . | . . . . Highest Corruption . | . . . . Average Corruption . | . . . . Corruption Purged . | . . . . Corruption Blocked . | . . . . Overload Shots . | . . . . Overflow Damage . | . . . . Projectiles . | . . . . Explosions . | . . . . Melee . | . . . . Knockbacks . | . . . . Impact . | . . . . Kinetic . | . . . . Secondary . | . . . . Self-Inflicted Damage . | . . . . Shots . | . . . . Rammed . | . . . . Targets Rammed . | . . . . Kicked . | . . . . Crushed . | . . . . Highest Temperature 297 | 64 238 297 199 Average Temperature 78 | 23 66 126 63 Received Heat Transfer 826 | . 24 63 739 Siege Activations . | . . . . Martial Activations . | . . . . Shielding Activations . | . . . . Robots Disrupted . | . . . . Combat Hostiles . | . . . . Robots Corrupted . | . . . . Combat Hostiles . | . . . . Parts Fried . | . . . . Impact Corruptions . | . . . . Robots Melted 1 | . 1 . . Combat Hostiles . | . . . . Parts Melted 14 | 1 6 4 3 Heat Transferred 5994 | 259 2072 1073 2590 Parts Sabotaged . | . . . . Parts Stolen . | . . . . Parts Stripped . | . . . . Power Chain Reactions . | . . . . Alert | -11 -10 -10 -10 ------- Run | Yrd Mat Min Sub Maximum Alert Level . | . . . . Low Security (%) 100 | 100 100 100 . Level 1 . | . . . . Level 2 . | . . . . Level 3 . | . . . . Level 4 . | . . . . Level 5 . | . . . . High Security . | . . . . Max Security . | . . . . Peak Influence 55 | 10 55 50 . Initial . | . . . . Average 3 | 1 6 2 . Influence Increases 478 | 15 279 90 94 Destroy 0b10 Robot/C 300 | . 140 80 80 Destroy 0b10 Robot/NC 65 | 15 50 . . Destroy Leader 70 | . 50 10 10 Allied During Kill 4 | . . . 4 Successful Hack 15 | . 15 . . Disable Machine 8 | . 8 . . Destroy Structure 1 | . 1 . . Lose Combat Pursuer 15 | . 15 . . Influence Decreases 478 | 15 279 90 94 Time Decay 478 | 15 279 90 94 Squads Dispatched 1 | . 1 . . Investigation 1 | . 1 . . Extermination . | . . . . Reinforcement . | . . . . Assault . | . . . . Garrison . | . . . . Intercept . | . . . . Searches Triggered . | . . . . Construction Impeded . | . . . . Haulers Reinforced . | . . . . Active Scanning Responses . | . . . . Cargo Convoy Interrupts . | . . . . Stealth | -11 -10 -10 -10 --------- Run | Yrd Mat Min Sub Distress Signals 1 | . 1 . . Communications Jammed . | . . . . Distress Signals . | . . . . Times Spotted 29 | . 13 4 12 Peak Tracking Total 4 | . 4 2 3 Tactical Retreats 1 | . 1 . . Traps | -11 -10 -10 -10 ------- Run | Yrd Mat Min Sub Traps Triggered 4 | . 3 . 1 Indirectly . | . . . . Trap Hack Attempts . | . . . . Triggered . | . . . . Disarmed 5 | . 5 . . Reprogrammed . | . . . . Reused . | . . . . Traps Extracted . | . . . . Installed . | . . . . Triggered . | . . . . Machines | -11 -10 -10 -10 ---------- Run | Yrd Mat Min Sub Machines Disabled 2 | . 2 . . Max in Single Turn 1 | . 1 . . Machines Repaired . | . . . . Machines Dismantled . | . . . . Machines Sabotaged . | . . . . Overloaded Fab Kills . | . . . . Hacking | -11 -10 -10 -10 --------- Run | Yrd Mat Min Sub Machines Accessed 12 | . 10 . 2 Terminals 8 | . 8 . . Fabricators . | . . . . Repair Stations . | . . . . Recycling Units 2 | . 2 . . Scanalyzers . | . . . . Garrison Access . | . . . . Total Hacks 34 | . 31 . 3 Successful 17 | . 14 . 3 Failed 17 | . 17 . . Catastrophic 2 | . 2 . . Database Lockouts . | . . . . Manual 23 | . 23 . . Terminals 27 | . 27 . . Fabricators . | . . . . Repair Stations . | . . . . Recycling Units 4 | . 4 . . Scanalyzers . | . . . . Garrison Access . | . . . . Terminal Hacks 14 | . 11 . 3 Record 1 | . . . 1 Part Schematic 5 | . 5 . . Robot Schematic 3 | . 3 . . Robot Analysis 1 | . 1 . . Open Door 1 | . . . 1 Repair Station Index 1 | . 1 . . Disarm Traps 1 | . 1 . . Release Object 1 | . . . 1 Fabricator Hacks . | . . . . Repair Station Hacks . | . . . . Recycling Unit Hacks 3 | . 3 . . Retrieve Components 3 | . 3 . . Scanalyzer . | . . . . Garrison Access Hacks . | . . . . Unauthorized Hacks . | . . . . Terminals . | . . . . Fabricators . | . . . . Repair Stations . | . . . . Recycling Units . | . . . . Scanalyzers . | . . . . Garrison Access . | . . . . Data Cores Recovered . | . . . . Used . | . . . . Hacking Detections 5 | . 5 . . Full Trace Events 2 | . 2 . . Feedback Events . | . . . . Feedback Blocked . | . . . . Robot Schematics Acquired 3 | . 3 . . Robots Built . | . . . . Authchips . | . . . . Time . | . . . . Total Robot Build Rating . | . . . . Part Schematics Acquired 5 | . 5 . . Parts Built . | . . . . Authchips . | . . . . Time . | . . . . Total Part Build Rating . | . . . . Part Studies Acquired . | . . . . Parts Repaired . | . . . . Time . | . . . . Parts Recycled . | . . . . Recycled Matter . | . . . . Retrieved Matter . | . . . . Retrieved Components 6 | . 6 . . Parts Scanalyzed . | . . . . Part Schematics Acquired . | . . . . Parts Damaged . | . . . . Bothacking | -11 -10 -10 -10 ------------ Run | Yrd Mat Min Sub Used RIF Installer . | . . . . Robots Hacked . | . . . . Non-combat . | . . . . Combat . | . . . . Robot Hacks Applied . | . . . . Relay Couplers Released . | . . . . Fabnet Peak Effective % . | . . . . Robots Rewired . | . . . . Allies Hacked . | . . . . Hacks Repelled . | . . . . Allies | -11 -10 -10 -10 -------- Run | Yrd Mat Min Sub Total Allies 3 | . . 3 . Largest Group 3 | . . 3 3 Highest-Rated Group 40 | . . 40 40 Highest-Rated Ally 16 | . . 16 16 Total Orders . | . . . . Ally Attacks 25 | . . . 25 Total Damage 289 | . . . 289 Kills 2 | . . . 2 Allies Corrupted . | . . . . Allies Melted . | . . . . Intel | -11 -10 -10 -10 ------- Run | Yrd Mat Min Sub Active Infowar (turns) 3455 | . 1024 1265 1166 Sensors 3422 | . 1024 1265 1133 Structural 2869 | . 438 1265 1166 Robot Analysis Total 1 | . 1 . . Derelict Logs Recovered 1 | . . 1 . Drone Launches . | . . . . Drone Recoveries . | . . . . Exploration | -11 -10 -10 -10 ------------- Run | Yrd Mat Min Sub Turns Passed 3801 | 113 1257 1265 1166 Spaces Moved 1797 | 65 702 687 343 Core 80 | 21 59 . . Treads 1717 | 44 643 687 343 Legs . | . . . . Wheels . | . . . . Hover . | . . . . Flight . | . . . . Fastest Speed 50 | 50 50 160 160 Average Speed 158 | 124 158 160 160 Slowest Speed 160 | 160 160 160 160 Overloaded Moves . | . . . . Propulsion Burnouts . | . . . . Robots Hopped . | . . . . Potential Cave-ins . | . . . . Cave-ins Triggered . | . . . . Exploration Rate (%) 58 | 3 99 99 31 Regions Visited 3 Branch Regions 2 Pre-discovered Areas 1 | . . 1 . Known Exits Taken 3 | 1 1 1 . Unknown Exits Taken . | . . . . Scrap Searched 4 | . . 2 2 Spaces Dug . | . . . . Terrain Destroyed . | . . . . Melee . | . . . . Projectile . | . . . . AOE . | . . . . Terrain Rammed . | . . . . Walls Destroyed . | . . . . Machines Disabled . | . . . . Actions | -11 -10 -10 -10 --------- Run | Yrd Mat Min Sub Total 2568 | 89 774 821 884 Wait 611 | 5 7 108 491 Move 1794 | 64 701 686 343 Hop . | . . . . Pick Up 28 | 7 11 7 3 Fast Attach 6 | 2 4 . . Attach 15 | 4 5 . 6 Detach 1 | . 1 . . Swap 10 | . 4 2 4 Drop 7 | . 3 2 2 Fire 96 | 7 38 16 35 Melee . | . . . . Ram . | . . . . Kick . | . . . . Crush . | . . . . Escape Stasis . | . . . . Rewire . | . . . . Trap . | . . . . Miscellaneous . | . . . . Route ------- -11/Scrapyard -10/Materials (discovered 6 exits: *Mat x3 / *Min x2 / *Sub) -10/Mines (discovered 4 exits: *Mat x2 / *Exi / *Sub) -10/Subcaves (discovered 1 exit: *Mat) History --------- Turn | Location | Event 5 | -11/Scrapyard | Identified exit to Materials 5 | -11/Scrapyard | Discovered exit to Materials (range 16) 114 | -11/Scrapyard | Entered Materials 114 | -10/Materials | Evolved 1 slot: Utility x1 220 | -10/Materials | Identified exit to Mines 220 | -10/Materials | Discovered exit to Mines (range 6) 318 | -10/Materials | Build established: Hacker-Mutant 436 | -10/Materials | Identified exit to Materials 436 | -10/Materials | Discovered exit to Materials (range 10) 950 | -10/Materials | Discovered exit to Materials (range 14) 1067 | -10/Materials | Identified exit to Subcaves 1067 | -10/Materials | Discovered exit to Subcaves (range 15) 1072 | -10/Materials | Discovered exit to Materials (range 14) 1317 | -10/Materials | Discovered exit to Mines (range 16) 1371 | -10/Materials | Entered Mines 1402 | -10/Mines | Met a Derelict bent on vengeance 1493 | -10/Mines | Discovered exit to Materials (range 7) 1774 | -10/Mines | Learned location of Storage (-7) 2007 | -10/Mines | Discovered exit to Subcaves (range 9) 2014 | -10/Mines | Received a Rocket Launcher from a helpful Derelict 2061 | -10/Mines | Discovered exit to Materials (range 5) 2295 | -10/Mines | Assisted by bots powering up and referring to "LRC-V3" 2401 | -10/Mines | Deemed a non-threat by the Exiles lab entrance 2401 | -10/Mines | Identified exit to Exiles 2401 | -10/Mines | Discovered exit to Exiles (range 5) 2636 | -10/Mines | Entered Subcaves 2636 | -10/Subcaves | Accompanied by 3 allies 3060 | -10/Subcaves | Identified exit to Materials 3060 | -10/Subcaves | Discovered exit to Materials (range 8) 3064 | -10/Subcaves | Shifting Twisted Machinery released Sub. Machine Gun 3070 | -10/Subcaves | Shifting Twisted Machinery released Mak. Spear 3093 | -10/Subcaves | Disturbed a concealed Subdweller 3755 | -10/Subcaves | Core integrity fell below 50% 3787 | -10/Subcaves | Core integrity fell below 20% 3802 | -10/Subcaves | Destroyed by ZX-3XE(R) with Subdweller Laser Last Messages --------------- to Scrap Shield. 03746_ Med. Laser destroyed. 03762_ KI-FS0(R) affixes Scrap Shield Fragment to Scrap Shield. 03764_ Lgt. Treads destroyed. 03764_ KI-FS0(R) suffers critical hit (Burn). 03769_ Sensor Array destroyed. 03771_ Lgt. Treads destroyed. 03772_ Mak. Power Source destroyed. 03779_ Med. Laser destroyed. 03781_ Lgt. Angular Momentum Engine destroyed. 03782_ KI-FS0(R) destroyed. 03782_ Switching to secondary target: GM-ANU(R). 03782_ GM-ANU(R) suffers critical hit (Burn). 03790_ GM-ANU(R) affixes Scrap Shield Fragment to Scrap Shield. 03798_ Sub. Monowheel melted. 03798_ GM-ANU(R) destroyed. 03798_ Switching to secondary target: ZX-3XE(R). Map ----- +----------------------------------------------------+ | ?????????????????????????????????????????????????? | | ?????????????????????????????????????????????????? | | ?????????????????????????????????????????????????? | | ?????????????????????????????????????????????????? | | ?????????????????????????????????????????????????? | | ?????????????????????????????????????????????????? | | ?????????????????????????????????????????????????? | | ?????????????????????????????????????????????????? | | ?????????????????????????????????????????????????? | | ?????????????????????????????????????????????????? | | ?????????????????????????????????????????????????? | | ?????????????????????????????????????????????????? | | ##???????????????????????????????????????????????? | | ###??????????????????????????????????????????????? | | ####?????????????????????????????????????????????? | | ###############????####?????????????????????????? | | ^ ##############??######???????"#""??????????????? | | ^ ^ # ##?##### ########"###??????????????? | | ####### ########""##??????????????? | | #### # ###### ## ## # "##??????????????? | | ## ## ##### ??? ##???????????? | | ## ## ? #"???????????? | | #### # ## # ### ##; R# ## # # ???????????? | | ########### #"## ; %;# # #"???????????? | | ??######## ; ; # ]% # ##???????????? | | ????????### ;; @ &% # ?????????????? | | ????????###=%; & ##?????????????? | | ????????### ; ; R< < ##?????????????? | | ????????##" ; ; [ ;# R ###?????????????? | | ????????#### #;# ;#< R<# ?????????????? | | ?????????###" &## # <# ##??????????? | | ??????????## ]%## ###& ##??????????? | | ??????????###=%# ; #### ###??????????? | | ??????????### &#### ## ##### ###??????????? | | ???????????## #### #### #### ?????????????? | | ???????????### ######### ##?? ????????????? | | ???????????### #####?# ??? ????????????? | | ???????????## ###????## ????????????????? | | ???????????## ###????### ????????????????? | | ???????????### #####??????#### ????????????????? | | ???????????#########???????#####?????????????????? | | ????????????#####????????????###?????????????????? | | ?????????????????????????????????????????????????? | | ?????????????????????????????????????????????????? | | ?????????????????????????????????????????????????? | | ????????????????????????##########???????????????? | | ????????????????????????##########???????????????? | | ????????????????????????##""""""##???????????????? | | ????????????????????????##""""X"##???????????????? | | ????????????????????????## &"##???????????????? | +----------------------------------------------------+ Best States ------------- Heat Dissipation 25 Energy Generation 18 Energy Capacity 280 Matter Stores 300 Matter Capacity 300 Sight Range 16 Robot Scan Range 14 Terrain Scan Density 10 Armor Coverage 150 Resistance: KI 35 Resistance: TH 35 Resistance: EX 35 Resistance: EM 35 Resistance: I 35 Resistance: S 35 Resistance: P 35 Core Shielding 20 Evasion (%) 50 Recoil Reduction 2 Offensive Hacking 20 Item Schematics ----------------- Cargo Storage Unit | -10/Materials | Hacked Huge Storage Unit | -10/Materials | Hacked Structural Scanner | -10/Materials | Hacked Hcp. Storage Unit | -10/Materials | Hacked Sensor Array | -10/Materials | Hacked Robot Schematics ------------------ W-16 Scout | -10/Materials | Hacked G-34 Mercenary | -10/Materials | Hacked S-10 Pest | -10/Materials | Hacked Fabricated ------------ Nothing Repaired ---------- Nothing Studied --------- None Alien Tech Used ----------------- None Achievements -------------- None Challenges ------------ None Game ------ Seed AlertArcAccelerator Manual? 0 Play Time 00:15:52 Cumulative 316.2 hours Start 2026.01.28 @ 09:13:47 End 2026.01.28 @ 09:29:08 Sessions 1 Manual Loads 0 Difficulty Explorer Special Mode None Game No. 497 Rogue 0 Adventurer 0 Explorer 497 Win Type - Total 0 Types 0/0/0/0/0/0/0/0/0/0 Lore% 77 Gallery% 70 Achievement% 56 Wizard Run 0 Options --------- Layout 1 ASCII 0 Keyboard 0 Movement Mouse Keybinds 1 Fullscreen 1 Font 24/Smallcaps Map View 50x35 Zoom Use 0% Tactical HUD 1 Map Filters NONE Filters NONE Steam 1 RUN: bfd7a9f8-fc82-4e64-9555-d9ff47192c9d